[Event "Live Chess"]
[Site "Chess.com"]
[Date "2023.05.21"]
[Round "-"]
[White "SimpleHarmonic1"]
[Black "Duke_of_Bebington"]
[Result "1-0"]
[WhiteElo "2049"]
[BlackElo "1554"]
[TimeControl "300"]
[EndTime "7:56:16 PDT"]
[Termination "SimpleHarmonic1 won by checkmate"]

1. d4 {[%clk 0:04:58.5]} 1... d5 {[%clk 0:04:59.3]} 2. c4 {[%clk 0:04:57.8]}
2... c6 {[%clk 0:04:57.9]} 3. Nc3 {[%clk 0:04:57]} 3... e5 {[%clk 0:04:57.2]} 4.
cxd5 {[%clk 0:04:56.7]} 4... cxd5 {[%clk 0:04:55.4]} 5. e3 {[%clk 0:04:39.9]}
5... Nc6 {[%clk 0:04:51.8]} 6. Bb5 {[%clk 0:04:38.8]} 6... Bd7 {[%clk 0:04:51]}
7. dxe5 {[%clk 0:04:37]} 7... Nxe5 {[%clk 0:04:48.7]} 8. Bxd7+ {[%clk
0:04:31.2]} 8... Qxd7 {[%clk 0:04:45]} 9. Nf3 {[%clk 0:04:29]} 9... Nxf3+ {[%clk
0:04:43.1]} 10. gxf3 {[%clk 0:04:28.9]} 10... Nf6 {[%clk 0:04:42]} 11. Bd2
{[%clk 0:04:20.8]} 11... Bc5 {[%clk 0:04:35.3]} 12. Ne2 {[%clk 0:04:03.7]} 12...
O-O {[%clk 0:04:32.6]} 13. Rg1 {[%clk 0:04:01.4]} 13... Qf5 {[%clk 0:04:23.6]}
14. Ng3 {[%clk 0:03:55.5]} 14... Qd3 {[%clk 0:04:20.1]} 15. Bc3 {[%clk
0:03:51.9]} 15... Qxd1+ {[%clk 0:04:17.8]} 16. Rxd1 {[%clk 0:03:50]} 16... Nd7
{[%clk 0:04:17.3]} 17. Nh5 {[%clk 0:03:46.5]} 17... g6 {[%clk 0:04:13]} 18. Nf6+
{[%clk 0:03:44.2]} 18... Nxf6 {[%clk 0:04:11.5]} 19. Bxf6 {[%clk 0:03:42.6]}
19... Rfe8 {[%clk 0:04:09.7]} 20. Ke2 {[%clk 0:03:40.8]} 20... d4 {[%clk
0:04:08.7]} 21. Bxd4 {[%clk 0:03:37.9]} 21... Bxd4 {[%clk 0:04:07.8]} 22. Rxd4
{[%clk 0:03:37.7]} 22... Rac8 {[%clk 0:04:06.3]} 23. Rd2 {[%clk 0:03:35.7]}
23... Rc5 {[%clk 0:04:03.5]} 24. Rgd1 {[%clk 0:03:33.7]} 24... Rh5 {[%clk
0:04:02.2]} 25. Rh1 {[%clk 0:03:31.1]} 25... Ra5 {[%clk 0:04:00]} 26. a3 {[%clk
0:03:29.9]} 26... Rb5 {[%clk 0:03:58.7]} 27. h4 {[%clk 0:03:28.5]} 27... Rc8
{[%clk 0:03:55.2]} 28. f4 {[%clk 0:03:20.9]} 28... Rcc5 {[%clk 0:03:53.9]} 29.
Kf3 {[%clk 0:03:19]} 29... Rb3 {[%clk 0:03:47.7]} 30. Kg4 {[%clk 0:03:06.9]}
30... Rcb5 {[%clk 0:03:46]} 31. h5 {[%clk 0:02:58.3]} 31... Rxb2 {[%clk
0:03:42.8]} 32. Rd8+ {[%clk 0:02:56.2]} 32... Kg7 {[%clk 0:03:41.1]} 33. h6+
{[%clk 0:02:56.1]} 33... Kf6 {[%clk 0:03:40.2]} 34. Rd6+ {[%clk 0:02:46.9]}
34... Ke7 {[%clk 0:03:37.2]} 35. Rhd1 {[%clk 0:02:46.8]} 35... Rxf2 {[%clk
0:03:35]} 36. Rd7+ {[%clk 0:02:44.7]} 36... Kf6 {[%clk 0:03:34.2]} 37. R1d6#
{[%clk 0:02:42.5]} 1-0

[Event "Live Chess"]
[Site "Chess.com"]
[Date "2023.05.21"]
[Round "-"]
[White "WelshTiger"]
[Black "Rusty_Bridges"]
[Result "1-0"]
[WhiteElo "2340"]
[BlackElo "1506"]
[TimeControl "300"]
[EndTime "7:56:21 PDT"]
[Termination "WelshTiger won by resignation"]

1. e4 {[%clk 0:04:58.3]} 1... d6 {[%clk 0:04:58.2]} 2. d4 {[%clk 0:04:57.2]}
2... Nf6 {[%clk 0:04:56.5]} 3. Nc3 {[%clk 0:04:56.5]} 3... Nbd7 {[%clk
0:04:55.3]} 4. Nf3 {[%clk 0:04:54.6]} 4... e5 {[%clk 0:04:54.5]} 5. g4 {[%clk
0:04:53.6]} 5... Nxg4 {[%clk 0:04:51.7]} 6. Rg1 {[%clk 0:04:52.7]} 6... Ngf6
{[%clk 0:04:50.5]} 7. Bc4 {[%clk 0:04:51.6]} 7... h6 {[%clk 0:04:43.1]} 8. Be3
{[%clk 0:04:50.2]} 8... b6 {[%clk 0:04:37.4]} 9. dxe5 {[%clk 0:04:46.9]} 9...
dxe5 {[%clk 0:04:35.6]} 10. Qd3 {[%clk 0:04:43.1]} 10... Bb7 {[%clk 0:04:29.8]}
11. O-O-O {[%clk 0:04:41.9]} 11... g5 {[%clk 0:04:24]} 12. h4 {[%clk 0:04:26.3]}
12... g4 {[%clk 0:04:20.8]} 13. Nh2 {[%clk 0:04:25.5]} 13... h5 {[%clk
0:04:18.7]} 14. Nf1 {[%clk 0:04:24.2]} 14... Nc5 {[%clk 0:04:00]} 15. Qe2 {[%clk
0:04:23]} 15... Nfxe4 {[%clk 0:03:50.2]} 16. Rxd8+ {[%clk 0:04:19.3]} 1-0

[Event "Live Chess"]
[Site "Chess.com"]
[Date "2023.05.21"]
[Round "-"]
[White "Ed_Knox"]
[Black "AttackingSnowLeopard"]
[Result "0-1"]
[WhiteElo "1475"]
[BlackElo "2156"]
[TimeControl "300"]
[EndTime "7:56:31 PDT"]
[Termination "AttackingSnowLeopard won by checkmate"]

1. d4 {[%clk 0:04:57.1]} 1... d5 {[%clk 0:04:57.6]} 2. Bf4 {[%clk 0:04:56.3]}
2... Nf6 {[%clk 0:04:55.6]} 3. e3 {[%clk 0:04:55.6]} 3... c5 {[%clk 0:04:55.1]}
4. Nf3 {[%clk 0:04:54.7]} 4... Nc6 {[%clk 0:04:54.6]} 5. Nbd2 {[%clk 0:04:54.2]}
5... Qb6 {[%clk 0:04:46]} 6. Qc1 {[%clk 0:04:40.7]} 6... cxd4 {[%clk 0:04:40.5]}
7. exd4 {[%clk 0:04:36.8]} 7... Nxd4 {[%clk 0:04:40.1]} 8. Nxd4 {[%clk
0:04:30.9]} 8... Qxd4 {[%clk 0:04:40]} 9. Be3 {[%clk 0:04:30.2]} 9... Qb4 {[%clk
0:04:38.1]} 10. c3 {[%clk 0:04:26.3]} 10... Qa5 {[%clk 0:04:36.8]} 11. b4 {[%clk
0:04:21.1]} 11... Qc7 {[%clk 0:04:35.3]} 12. Bb5+ {[%clk 0:04:19]} 12... Bd7
{[%clk 0:04:33.7]} 13. Bxd7+ {[%clk 0:04:13.4]} 13... Nxd7 {[%clk 0:04:33.6]}
14. O-O {[%clk 0:04:12.5]} 14... e6 {[%clk 0:04:32.2]} 15. a4 {[%clk 0:04:10]}
15... Bd6 {[%clk 0:04:31.5]} 16. Nf3 {[%clk 0:03:53.2]} 16... Ne5 {[%clk
0:04:19.5]} 17. Nxe5 {[%clk 0:03:50.9]} 17... Bxe5 {[%clk 0:04:19.4]} 18. h3
{[%clk 0:03:50.4]} 18... Qxc3 {[%clk 0:04:17.5]} 19. Qxc3 {[%clk 0:03:45.4]}
19... Bxc3 {[%clk 0:04:16]} 20. Rab1 {[%clk 0:03:44.4]} 20... O-O {[%clk
0:04:13.9]} 21. Bc5 {[%clk 0:03:39.3]} 21... Rfd8 {[%clk 0:04:11.5]} 22. Rfc1
{[%clk 0:03:34.8]} 22... d4 {[%clk 0:04:09.2]} 23. Rd1 {[%clk 0:03:16.8]} 23...
Rd7 {[%clk 0:03:55.2]} 24. Rbc1 {[%clk 0:03:07.3]} 24... Rd5 {[%clk 0:03:53.9]}
25. a5 {[%clk 0:02:49.2]} 25... f5 {[%clk 0:03:50.2]} 26. g4 {[%clk 0:02:27.7]}
26... Kf7 {[%clk 0:03:47.4]} 27. gxf5 {[%clk 0:02:25.8]} 27... Rxf5 {[%clk
0:03:35.7]} 28. Bxd4 {[%clk 0:02:21.7]} 28... Bxd4 {[%clk 0:03:30.7]} 29. Rxd4
{[%clk 0:02:20.3]} 29... Rd5 {[%clk 0:03:29.9]} 30. Rf4+ {[%clk 0:02:17.7]}
30... Ke7 {[%clk 0:03:24.3]} 31. Rc7+ {[%clk 0:02:14.7]} 31... Rd7 {[%clk
0:03:22.5]} 32. Rf7+ {[%clk 0:02:06.3]} 32... Kxf7 {[%clk 0:03:20.2]} 33. Rxd7+
{[%clk 0:02:04.3]} 33... Kf6 {[%clk 0:03:19.9]} 34. Rxb7 {[%clk 0:02:03.5]}
34... a6 {[%clk 0:03:18.9]} 35. b5 {[%clk 0:01:59.8]} 35... axb5 {[%clk
0:03:16.5]} 36. Rxb5 {[%clk 0:01:58.6]} 36... e5 {[%clk 0:03:16.2]} 37. Rb6+
{[%clk 0:01:56.5]} 37... Kf5 {[%clk 0:03:15.2]} 38. a6 {[%clk 0:01:55.4]} 38...
Rc8 {[%clk 0:03:06.4]} 39. Rb7 {[%clk 0:01:46.8]} 39... Kf6 {[%clk 0:03:02.8]}
40. a7 {[%clk 0:01:43.7]} 40... Rc1+ {[%clk 0:03:01.2]} 41. Kg2 {[%clk
0:01:42.4]} 41... Ra1 {[%clk 0:03:00.9]} 42. Kg3 {[%clk 0:01:30.6]} 42... h5
{[%clk 0:02:55.8]} 43. Kh4 {[%clk 0:01:22.7]} 43... g6 {[%clk 0:02:54.1]} 44.
Kg3 {[%clk 0:01:16]} 44... Ra3+ {[%clk 0:02:49.5]} 45. f3 {[%clk 0:01:14.1]}
45... e4 {[%clk 0:02:46.4]} 46. Kf4 {[%clk 0:00:57.5]} 46... exf3 {[%clk
0:02:44.2]} 47. Rb6+ {[%clk 0:00:56.2]} 47... Kg7 {[%clk 0:02:42.9]} 48. Kg5
{[%clk 0:00:54.9]} 48... Ra5+ {[%clk 0:02:40.6]} 49. Rb5 {[%clk 0:00:46.3]}
49... Rxb5+ {[%clk 0:02:37.9]} 50. Kf4 {[%clk 0:00:43.9]} 50... Rf5+ {[%clk
0:02:37]} 51. Ke3 {[%clk 0:00:42.3]} 51... Rf8 {[%clk 0:02:32.3]} 52. h4 {[%clk
0:00:40.2]} 52... f2 {[%clk 0:02:31]} 53. a8=Q {[%clk 0:00:36.4]} 53... Rxa8
{[%clk 0:02:29.8]} 54. Kxf2 {[%clk 0:00:35.7]} 54... Ra3 {[%clk 0:02:29.7]} 55.
Kg2 {[%clk 0:00:34.4]} 55... Kf6 {[%clk 0:02:29.6]} 56. Kh2 {[%clk 0:00:33.6]}
56... Kf5 {[%clk 0:02:29.5]} 57. Kh1 {[%clk 0:00:33]} 57... Kg4 {[%clk
0:02:29.4]} 58. Kg1 {[%clk 0:00:32.6]} 58... Kxh4 {[%clk 0:02:29.3]} 59. Kf2
{[%clk 0:00:31.6]} 59... Kg4 {[%clk 0:02:28.2]} 60. Kg2 {[%clk 0:00:30.4]} 60...
Ra2+ {[%clk 0:02:28.1]} 61. Kh1 {[%clk 0:00:28.8]} 61... Kg3 {[%clk 0:02:28]}
62. Kg1 {[%clk 0:00:27.8]} 62... Ra1# {[%clk 0:02:27.9]} 0-1

[Event "Live Chess"]
[Site "Chess.com"]
[Date "2023.05.21"]
[Round "-"]
[White "f4nomore"]
[Black "wadsy27"]
[Result "0-1"]
[WhiteElo "1406"]
[BlackElo "2539"]
[TimeControl "300"]
[EndTime "7:56:32 PDT"]
[Termination "wadsy27 won by resignation"]

1. e4 {[%clk 0:04:58.1]} 1... e6 {[%clk 0:04:57.5]} 2. Nf3 {[%clk 0:04:55.2]}
2... d5 {[%clk 0:04:57.4]} 3. e5 {[%clk 0:04:53.5]} 3... c5 {[%clk 0:04:55.7]}
4. c3 {[%clk 0:04:52.2]} 4... Nc6 {[%clk 0:04:53.1]} 5. d4 {[%clk 0:04:50.4]}
5... Qb6 {[%clk 0:04:52.7]} 6. Na3 {[%clk 0:04:36.9]} 6... cxd4 {[%clk
0:04:43.1]} 7. Nxd4 {[%clk 0:04:32.2]} 7... Nxe5 {[%clk 0:04:40.3]} 8. Bb5+
{[%clk 0:04:26.2]} 8... Bd7 {[%clk 0:04:38.1]} 9. Bxd7+ {[%clk 0:04:23]} 9...
Nxd7 {[%clk 0:04:38]} 10. O-O {[%clk 0:04:20.3]} 10... Ngf6 {[%clk 0:04:36.6]}
11. Be3 {[%clk 0:04:17.2]} 11... Qd8 {[%clk 0:04:28.9]} 12. Nac2 {[%clk
0:04:07]} 12... Bd6 {[%clk 0:04:25.3]} 13. Nf3 {[%clk 0:04:02.9]} 13... O-O
{[%clk 0:04:21.8]} 14. Ncd4 {[%clk 0:04:00.8]} 14... Ne5 {[%clk 0:04:20]} 15.
Nxe5 {[%clk 0:03:58.2]} 15... Bxe5 {[%clk 0:04:19.3]} 16. Qf3 {[%clk 0:03:53.4]}
16... a6 {[%clk 0:04:17.7]} 17. Qh3 {[%clk 0:03:39.9]} 17... Qc7 {[%clk
0:04:15.6]} 18. g3 {[%clk 0:03:32.4]} 18... b5 {[%clk 0:04:13]} 19. f4 {[%clk
0:03:29.5]} 19... Bd6 {[%clk 0:04:10.1]} 20. Nf3 {[%clk 0:03:11.8]} 20... Bc5
{[%clk 0:03:55.2]} 21. Bxc5 {[%clk 0:03:02]} 21... Qxc5+ {[%clk 0:03:53.1]} 22.
Nd4 {[%clk 0:03:00.5]} 22... b4 {[%clk 0:03:51.1]} 23. Rac1 {[%clk 0:02:53.7]}
23... bxc3 {[%clk 0:03:45]} 24. bxc3 {[%clk 0:02:51.8]} 24... Ne4 {[%clk
0:03:43.8]} 25. Kh1 {[%clk 0:02:40.9]} 25... Rab8 {[%clk 0:03:39.6]} 26. f5
{[%clk 0:02:36.4]} 26... e5 {[%clk 0:03:34.3]} 27. Nb3 {[%clk 0:02:31.7]} 27...
Nf2+ {[%clk 0:03:28.8]} 28. Rxf2 {[%clk 0:02:28.7]} 28... Qxf2 {[%clk
0:03:27.4]} 29. Rf1 {[%clk 0:02:23.4]} 29... Qc2 {[%clk 0:03:26.3]} 30. Nc5
{[%clk 0:02:16.8]} 30... Rb2 {[%clk 0:03:19.7]} 31. Nd7 {[%clk 0:02:09.2]} 31...
Qe4+ {[%clk 0:03:14.3]} 32. Kg1 {[%clk 0:02:03.2]} 32... Rd8 {[%clk 0:03:07.4]}
33. Nc5 {[%clk 0:01:54.4]} 33... Qe3+ {[%clk 0:03:05.2]} 0-1

[Event "Live Chess"]
[Site "Chess.com"]
[Date "2023.05.21"]
[Round "-"]
[White "wot-not"]
[Black "Olisingapore"]
[Result "0-1"]
[WhiteElo "1518"]
[BlackElo "1788"]
[TimeControl "300"]
[EndTime "7:56:34 PDT"]
[Termination "Olisingapore won by checkmate"]

1. e4 {[%clk 0:04:49.2]} 1... c5 {[%clk 0:04:58]} 2. f4 {[%clk 0:04:48.4]} 2...
d6 {[%clk 0:04:57.8]} 3. Nf3 {[%clk 0:04:47.8]} 3... Nc6 {[%clk 0:04:56.9]} 4.
Bb5 {[%clk 0:04:45.5]} 4... g6 {[%clk 0:04:53.5]} 5. O-O {[%clk 0:04:43.9]} 5...
Bg7 {[%clk 0:04:52.1]} 6. e5 {[%clk 0:04:42.7]} 6... Bd7 {[%clk 0:04:37]} 7. d4
{[%clk 0:04:27.4]} 7... cxd4 {[%clk 0:04:34.3]} 8. Bxc6 {[%clk 0:04:23.5]} 8...
Bxc6 {[%clk 0:04:30.8]} 9. Nxd4 {[%clk 0:04:22.7]} 9... Qb6 {[%clk 0:04:26.7]}
10. Kh1 {[%clk 0:04:10.9]} 10... dxe5 {[%clk 0:04:22.6]} 11. fxe5 {[%clk
0:04:03]} 11... Rd8 {[%clk 0:04:15]} 12. c3 {[%clk 0:04:00.6]} 12... Bxe5 {[%clk
0:04:12.6]} 13. Qg4 {[%clk 0:03:41.5]} 13... Nf6 {[%clk 0:04:07.7]} 14. Qh4
{[%clk 0:03:32]} 14... O-O {[%clk 0:04:00.7]} 15. Bh6 {[%clk 0:03:27.6]} 15...
Rfe8 {[%clk 0:03:54.5]} 16. Nd2 {[%clk 0:03:23.7]} 16... Qxb2 {[%clk 0:03:34.5]}
17. N2f3 {[%clk 0:03:17.6]} 17... Bxd4 {[%clk 0:03:28]} 18. Nxd4 {[%clk
0:03:15.6]} 18... Rxd4 {[%clk 0:03:24.9]} 19. cxd4 {[%clk 0:03:12.5]} 19...
Qxg2# {[%clk 0:03:23]} 0-1

[Event "Live Chess"]
[Site "Chess.com"]
[Date "2023.05.21"]
[Round "-"]
[White "peleus16"]
[Black "MarkLim1"]
[Result "0-1"]
[WhiteElo "1679"]
[BlackElo "1724"]
[TimeControl "300"]
[EndTime "7:56:45 PDT"]
[Termination "MarkLim1 won on time"]

1. d4 {[%clk 0:04:54.5]} 1... c6 {[%clk 0:04:58.5]} 2. e4 {[%clk 0:04:49.1]}
2... d5 {[%clk 0:04:57.7]} 3. exd5 {[%clk 0:04:47.6]} 3... cxd5 {[%clk
0:04:56.9]} 4. c4 {[%clk 0:04:46.2]} 4... Nf6 {[%clk 0:04:55.2]} 5. Nf3 {[%clk
0:04:42.2]} 5... e6 {[%clk 0:04:53.2]} 6. c5 {[%clk 0:04:37.6]} 6... b6 {[%clk
0:04:51.3]} 7. b4 {[%clk 0:04:32.4]} 7... a5 {[%clk 0:04:48.3]} 8. Bd2 {[%clk
0:04:07.3]} 8... axb4 {[%clk 0:04:45.3]} 9. Bxb4 {[%clk 0:04:03.7]} 9... bxc5
{[%clk 0:04:43.9]} 10. Bxc5 {[%clk 0:03:52.9]} 10... Qa5+ {[%clk 0:04:38.2]} 11.
Nbd2 {[%clk 0:03:42]} 11... Bxc5 {[%clk 0:04:36.1]} 12. dxc5 {[%clk 0:03:38.1]}
12... O-O {[%clk 0:04:32.5]} 13. Bd3 {[%clk 0:03:25.9]} 13... Qxc5 {[%clk
0:04:29.3]} 14. O-O {[%clk 0:03:18.9]} 14... Ba6 {[%clk 0:04:27.1]} 15. Rc1
{[%clk 0:03:12.1]} 15... Qd6 {[%clk 0:04:24]} 16. Qa4 {[%clk 0:02:52.7]} 16...
Bxd3 {[%clk 0:04:17]} 17. Qxa8 {[%clk 0:02:48.3]} 17... Bxf1 {[%clk 0:04:15.8]}
18. Nxf1 {[%clk 0:02:42.9]} 18... Nbd7 {[%clk 0:04:05.5]} 19. Qa7 {[%clk
0:02:26.2]} 19... h6 {[%clk 0:03:53.7]} 20. a4 {[%clk 0:02:19.9]} 20... Ne4
{[%clk 0:03:45.3]} 21. a5 {[%clk 0:02:08.8]} 21... Ndc5 {[%clk 0:03:32.9]} 22.
N3d2 {[%clk 0:01:33.1]} 22... Nxf2 {[%clk 0:03:15.9]} 23. Qxc5 {[%clk
0:01:17.4]} 23... Nh3+ {[%clk 0:02:35.6]} 24. gxh3 {[%clk 0:01:09.2]} 24... Qf4
{[%clk 0:02:34]} 25. Qf2 {[%clk 0:01:01.9]} 25... Qa4 {[%clk 0:02:23.2]} 26. Nf3
{[%clk 0:00:39]} 26... Qxa5 {[%clk 0:02:19.7]} 27. Ne5 {[%clk 0:00:34.7]} 27...
Qa3 {[%clk 0:02:10.7]} 28. Rc7 {[%clk 0:00:24.6]} 28... f6 {[%clk 0:01:52.1]}
29. Ng6 {[%clk 0:00:19.3]} 29... Rf7 {[%clk 0:01:43.3]} 30. Rxf7 {[%clk
0:00:11.1]} 30... Kxf7 {[%clk 0:01:42.2]} 31. Nh4 {[%clk 0:00:08.7]} 31... Qb4
{[%clk 0:01:33.6]} 32. Qa7+ {[%clk 0:00:04.1]} 32... Kg8 {[%clk 0:01:29.7]} 33.
Qa8+ {[%clk 0:00:02.7]} 33... Kh7 {[%clk 0:01:27.6]} 34. Qe8 {[%clk 0:00:00.2]}
34... Qd4+ {[%clk 0:01:20.1]} 0-1

[Event "Live Chess"]
[Site "Chess.com"]
[Date "2023.05.21"]
[Round "-"]
[White "ZackirtyChess"]
[Black "Hacker_2009"]
[Result "1/2-1/2"]
[WhiteElo "1197"]
[BlackElo "1955"]
[TimeControl "300"]
[EndTime "7:57:07 PDT"]
[Termination "Game drawn by stalemate"]

1. d4 {[%clk 0:04:58.5]} 1... Nf6 {[%clk 0:04:57.1]} 2. c4 {[%clk 0:04:57.7]}
2... e6 {[%clk 0:04:55.8]} 3. Nc3 {[%clk 0:04:57.1]} 3... d5 {[%clk 0:04:54.6]}
4. Bg5 {[%clk 0:04:55.5]} 4... Be7 {[%clk 0:04:53.4]} 5. Nf3 {[%clk 0:04:53.1]}
5... O-O {[%clk 0:04:51.3]} 6. e3 {[%clk 0:04:50.5]} 6... b6 {[%clk 0:04:49.7]}
7. Bd3 {[%clk 0:04:47]} 7... Bb7 {[%clk 0:04:35.3]} 8. O-O {[%clk 0:04:40.8]}
8... c5 {[%clk 0:04:32.5]} 9. dxc5 {[%clk 0:04:36.8]} 9... Bxc5 {[%clk
0:04:22.8]} 10. cxd5 {[%clk 0:04:26.8]} 10... exd5 {[%clk 0:04:19]} 11. e4
{[%clk 0:04:24.8]} 11... Be7 {[%clk 0:04:15.2]} 12. exd5 {[%clk 0:04:18.7]}
12... Nxd5 {[%clk 0:04:13.1]} 13. Nxd5 {[%clk 0:04:06.8]} 13... Bxd5 {[%clk
0:04:11.6]} 14. Qd2 {[%clk 0:03:59.4]} 14... Bxf3 {[%clk 0:04:07.3]} 15. Bxe7
{[%clk 0:03:57.7]} 15... Qxe7 {[%clk 0:04:05.1]} 16. gxf3 {[%clk 0:03:57.6]}
16... Nc6 {[%clk 0:04:03.4]} 17. Kh1 {[%clk 0:03:55.8]} 17... Rfd8 {[%clk
0:04:00.2]} 18. Rg1 {[%clk 0:03:52.8]} 18... Qf6 {[%clk 0:03:56]} 19. Rad1
{[%clk 0:03:45.5]} 19... Qxf3+ {[%clk 0:03:53.4]} 20. Rg2 {[%clk 0:03:43.3]}
20... Ne5 {[%clk 0:03:47.2]} 21. Re1 {[%clk 0:03:43.2]} 21... Nxd3 {[%clk
0:03:42.3]} 22. Re3 {[%clk 0:03:42.4]} 22... Qf5 {[%clk 0:03:35.6]} 23. Rxg7+
{[%clk 0:03:30]} 23... Kxg7 {[%clk 0:03:32.7]} 24. Rg3+ {[%clk 0:03:28.6]} 24...
Kh8 {[%clk 0:03:29.9]} 25. Qc3+ {[%clk 0:03:26.5]} 25... Qe5 {[%clk 0:03:27.3]}
26. Rxd3 {[%clk 0:03:16.2]} 26... Qxc3 {[%clk 0:03:24.5]} 27. Rxc3 {[%clk
0:03:15.2]} 27... Rd2 {[%clk 0:03:23.5]} 28. Kg2 {[%clk 0:03:11.8]} 28... Rxb2
{[%clk 0:03:22.6]} 29. Kg3 {[%clk 0:03:11.2]} 29... Rxa2 {[%clk 0:03:21.9]} 30.
Kg4 {[%clk 0:03:10.4]} 30... Kg7 {[%clk 0:03:21.2]} 31. Kg5 {[%clk 0:03:07.4]}
31... Rxf2 {[%clk 0:03:20.1]} 32. Rg3 {[%clk 0:03:05.8]} 32... Rf6 {[%clk
0:03:13]} 33. Kh5+ {[%clk 0:03:02]} 33... Rg6 {[%clk 0:03:12.4]} 34. Rd3 {[%clk
0:03:01.7]} 34... Re8 {[%clk 0:03:11.4]} 35. Rd5 {[%clk 0:02:59.3]} 35... Re2
{[%clk 0:03:09.7]} 36. h4 {[%clk 0:02:58]} 36... a5 {[%clk 0:03:02.9]} 37. Rf5
{[%clk 0:02:52.8]} 37... Rc2 {[%clk 0:02:58]} 38. Rxf7+ {[%clk 0:02:49.2]} 38...
Kg8 {[%clk 0:02:54.3]} 39. Rf8+ {[%clk 0:02:47.5]} 39... Kg7 {[%clk 0:02:45.3]}
40. Rf7+ {[%clk 0:02:46.1]} 40... Kg8 {[%clk 0:02:44.6]} 41. Rf8+ {[%clk
0:02:45.5]} 41... Kxf8 {[%clk 0:02:44.3]} 1/2-1/2

[Event "Live Chess"]
[Site "Chess.com"]
[Date "2023.05.21"]
[Round "-"]
[White "BillythekidFellowes"]
[Black "Biranidun"]
[Result "0-1"]
[WhiteElo "2113"]
[BlackElo "2520"]
[TimeControl "300"]
[EndTime "7:57:07 PDT"]
[Termination "Biranidun won by resignation"]

1. e4 {[%clk 0:04:58.8]} 1... c5 {[%clk 0:04:59.1]} 2. Nf3 {[%clk 0:04:50.7]}
2... d6 {[%clk 0:04:58.5]} 3. d4 {[%clk 0:04:49.9]} 3... cxd4 {[%clk 0:04:58.4]}
4. Qxd4 {[%clk 0:04:49.8]} 4... Nc6 {[%clk 0:04:57.4]} 5. Bb5 {[%clk 0:04:49.3]}
5... Bd7 {[%clk 0:04:57]} 6. Bxc6 {[%clk 0:04:48.4]} 6... Bxc6 {[%clk
0:04:56.9]} 7. Nc3 {[%clk 0:04:48.1]} 7... Nf6 {[%clk 0:04:56.5]} 8. Bg5 {[%clk
0:04:47.8]} 8... e6 {[%clk 0:04:56.2]} 9. O-O-O {[%clk 0:04:47.1]} 9... Be7
{[%clk 0:04:55.8]} 10. Rhe1 {[%clk 0:04:45.5]} 10... O-O {[%clk 0:04:54.9]} 11.
Qd3 {[%clk 0:04:43.1]} 11... Qa5 {[%clk 0:04:53.1]} 12. Kb1 {[%clk 0:04:40.1]}
12... h6 {[%clk 0:04:46.9]} 13. Bh4 {[%clk 0:04:36.5]} 13... Qa6 {[%clk
0:04:43.6]} 14. Qxa6 {[%clk 0:04:30]} 14... bxa6 {[%clk 0:04:43.5]} 15. Nd4
{[%clk 0:04:29.3]} 15... Bb7 {[%clk 0:04:40.6]} 16. f4 {[%clk 0:04:25.2]} 16...
Rfe8 {[%clk 0:04:36.9]} 17. Nb3 {[%clk 0:04:21.8]} 17... Rac8 {[%clk 0:04:32.7]}
18. e5 {[%clk 0:04:19.6]} 18... dxe5 {[%clk 0:04:31.6]} 19. fxe5 {[%clk
0:04:19.5]} 19... Nd5 {[%clk 0:04:29.8]} 20. Bxe7 {[%clk 0:04:17.9]} 20... Nxc3+
{[%clk 0:04:27.5]} 21. bxc3 {[%clk 0:04:17.3]} 21... Rxe7 {[%clk 0:04:27.4]} 22.
Kb2 {[%clk 0:04:16.4]} 22... Bxg2 {[%clk 0:04:25.7]} 23. Rg1 {[%clk 0:04:08.9]}
23... Bd5 {[%clk 0:04:24.6]} 24. Rd3 {[%clk 0:04:05.7]} 24... Rb7 {[%clk
0:04:23.1]} 25. Rdg3 {[%clk 0:04:04]} 25... g6 {[%clk 0:04:22.4]} 26. h4 {[%clk
0:04:03.4]} 26... h5 {[%clk 0:04:21.1]} 27. Rg5 {[%clk 0:04:02.2]} 27... a5
{[%clk 0:04:18.6]} 28. a4 {[%clk 0:03:45.1]} 28... Kh7 {[%clk 0:04:15.6]} 29.
R5g3 {[%clk 0:03:38.7]} 29... Rc4 {[%clk 0:04:13.7]} 30. Ka3 {[%clk 0:03:35.8]}
30... Rbc7 {[%clk 0:04:08]} 31. Nxa5 {[%clk 0:03:30.8]} 31... Rxc3+ {[%clk
0:04:06.8]} 32. Rxc3 {[%clk 0:03:28.9]} 32... Rxc3+ {[%clk 0:04:06.7]} 33. Kb2
{[%clk 0:03:28.2]} 33... Rh3 {[%clk 0:04:03.7]} 34. Rf1 {[%clk 0:03:23.6]} 34...
Kg7 {[%clk 0:04:02.8]} 35. c4 {[%clk 0:03:22.9]} 35... Be4 {[%clk 0:03:56.8]}
36. c5 {[%clk 0:03:21.8]} 36... Rxh4 {[%clk 0:03:55.7]} 37. c6 {[%clk 0:03:21]}
37... Bd3 {[%clk 0:03:48.8]} 38. Rd1 {[%clk 0:03:16.1]} 38... Ba6 {[%clk
0:03:44.4]} 39. Ka3 {[%clk 0:03:07.7]} 39... Re4 {[%clk 0:03:43.1]} 40. Rd7
{[%clk 0:03:02.9]} 40... Rxe5 {[%clk 0:03:41.3]} 41. Kb4 {[%clk 0:02:57]} 41...
Re4+ {[%clk 0:03:37.3]} 42. Kc5 {[%clk 0:02:54.6]} 42... Rxa4 {[%clk 0:03:35.8]}
43. Nb7 {[%clk 0:02:53.7]} 43... Rc4+ {[%clk 0:03:33.8]} 44. Kd6 {[%clk
0:02:53.1]} 44... Bb5 {[%clk 0:03:31.7]} 45. Na5 {[%clk 0:02:50.2]} 45... Rd4+
{[%clk 0:03:29.1]} 46. Ke7 {[%clk 0:02:45.1]} 46... Rxd7+ {[%clk 0:03:28.5]} 47.
cxd7 {[%clk 0:02:45]} 47... Bxd7 {[%clk 0:03:28.1]} 48. Kxd7 {[%clk 0:02:44.9]}
48... h4 {[%clk 0:03:27.8]} 49. Kd6 {[%clk 0:02:44]} 49... h3 {[%clk 0:03:27.4]}
50. Nc4 {[%clk 0:02:41.6]} 50... h2 {[%clk 0:03:27.3]} 51. Ne5 {[%clk 0:02:37]}
0-1

[Event "Live Chess"]
[Site "Chess.com"]
[Date "2023.05.21"]
[Round "-"]
[White "OleksiyJr1"]
[Black "bedsdrout"]
[Result "0-1"]
[WhiteElo "1033"]
[BlackElo "1647"]
[TimeControl "300"]
[EndTime "7:57:11 PDT"]
[Termination "bedsdrout won by resignation"]

1. e4 {[%clk 0:04:58.7]} 1... e5 {[%clk 0:04:57.4]} 2. Nf3 {[%clk 0:04:57]} 2...
f5 {[%clk 0:04:55.3]} 3. exf5 {[%clk 0:04:48.8]} 3... Nc6 {[%clk 0:04:51.8]} 4.
Bb5 {[%clk 0:04:46.8]} 4... Qe7 {[%clk 0:04:47.3]} 5. Qe2 {[%clk 0:04:44.8]}
5... Nb4 {[%clk 0:04:44.4]} 6. O-O {[%clk 0:04:36.7]} 6... Nxc2 {[%clk
0:04:40.6]} 7. Qxe5 {[%clk 0:04:33.4]} 7... Qxe5 {[%clk 0:04:36.4]} 8. Nxe5
{[%clk 0:04:33.3]} 8... Nxa1 {[%clk 0:04:33.1]} 9. Bd3 {[%clk 0:04:31.8]} 9...
Bc5 {[%clk 0:04:29.4]} 10. Nc3 {[%clk 0:04:30.5]} 10... Ne7 {[%clk 0:04:26.6]}
11. Re1 {[%clk 0:04:29.4]} 11... O-O {[%clk 0:04:23.9]} 12. Bb5 {[%clk
0:04:26.4]} 12... Nc2 {[%clk 0:04:17.2]} 13. Re4 {[%clk 0:04:20.9]} 13... c6
{[%clk 0:04:14.1]} 14. Bd3 {[%clk 0:04:19.1]} 14... d5 {[%clk 0:04:10.5]} 15.
Rg4 {[%clk 0:04:13.6]} 15... Ne1 {[%clk 0:04:03]} 16. Be2 {[%clk 0:04:06.6]}
16... Bxf5 {[%clk 0:03:59]} 17. Rf4 {[%clk 0:04:03.2]} 17... Bd6 {[%clk
0:03:55.6]} 0-1